bitfinex/quotes_ETHUSD_20260126
["timestamp","ask_amount","ask_price","bid_price","bid_amount"]
[1769406842422,2.64393392,2872.2,2871.1,0.001]
[1769406842604,2.71372003,2872.2,2871.1,0.001]
[1769406843633,2.717848,2872.1,2871.1,0.001]
[1769406844915,2.717848,2871.8,2871.1,0.001]
[1769406845219,0.06978611,2872.0,2871.1,2.89286646]
[1769406845220,0.86805487,2871.7,2871.1,2.89286646]
[1769406845421,2.717848,2872.0,2871.1,2.89286646]
[1769406846134,2.717848,2871.8,2871.1,0.001]
[1769406846732,6.03248684,2871.9,2870.1,3.4840817]
[1769406846733,2.717848,2871.5,2870.1,3.76289599]
[1769406846933,2.717848,2871.3,2870.1,2.89186646]
[1769406847552,2.717848,2871.3,2870.1,2.92670845]
[1769406850839,2.717848,2871.7,2870.2,2.89186646]
[1769406851051,2.717848,2871.7,2870.4,2.89186646]
[1769406851213,0.2717848,2871.6,2870.6,2.89186646]
[1769406852543,0.2717848,2871.6,2870.5,0.32750773]
[1769406852544,2.717848,2872.2,2870.7,2.92670116]
[1769406853045,2.717848,2872.1,2870.7,2.92670116]
[1769406855871,2.719848,2872.3,2870.8,2.89186646]
[1769406856176,2.719848,2872.3,2871.0,2.89186646]
[1769406856472,3.07687008,2872.2,2871.0,2.89186646]
[1769406857938,0.35902208,2872.2,2871.1,2.75663953]
[1769406858165,0.35902208,2872.2,2871.1,2.79146937]
[1769406860356,0.002,2872.1,2871.1,2.79146937]
[1769406860646,3.24327259,2872.1,2871.1,3.15769493]
[1769406860962,3.24327259,2872.1,2871.1,2.75663953]
[1769406868991,3.24327259,2872.1,2870.8,2.75663953]
[1769406869200,2.91360944,2872.0,2870.6,0.03482741]
[1769406869403,2.91360944,2872.0,2870.5,2.75663953]
[1769406869599,2.91360944,2871.7,2870.5,2.79146208]
[1769406869802,2.91360944,2871.7,2870.5,2.75663953]
[1769406872690,2.91360944,2871.7,2870.7,2.75763953]
[1769406874512,3.28182887,2871.9,2870.7,2.75763953]
[1769406879716,2.87045697,2871.8,2870.7,2.75763953]
[1769406879877,3.88213325,2871.7,2870.7,2.75763953]
[1769406881014,2.87045697,2871.6,2870.7,2.75763953]
[1769406882515,1.01167628,2871.7,2870.7,2.75763953]
[1769406884477,2.87045697,2871.6,2870.7,2.75763953]
[1769406884717,0.38821333,2871.5,2870.7,2.75763953]
[1769406884880,0.38821333,2871.5,2870.9,0.001]
[1769406885083,0.38821333,2871.5,2870.9,3.02537583]
[1769406885397,1.01367628,2871.7,2870.9,3.02537583]
[1769406887526,3.88413325,2871.7,2870.9,3.02537583]
[1769406895416,1.01367628,2871.7,2870.9,3.02537583]
[1769406896229,3.88413325,2871.7,2870.9,0.001]
[1769406896432,2.87045697,2871.6,2870.9,0.001]
[1769406896720,0.38841333,2871.5,2870.9,0.001]
[1769406898214,0.38841333,2871.5,2871.1,0.001]
[1769406898393,0.39041333,2871.5,2871.1,0.001]
[1769406901338,0.002,2871.5,2871.1,0.001]
[1769406903050,2.87045697,2871.2,2870.7,0.001]
[1769406905649,0.002,2871.5,2870.7,3.11723429]
[1769406911073,0.002,2871.5,2870.9,0.001]
[1769406911266,0.002,2871.5,2870.9,3.11723429]
[1769406912277,0.002,2871.5,2870.9,3.42905772]
[1769406914295,3.00910421,2871.2,2870.7,0.001]
[1769406916779,0.002,2871.5,2870.7,3.11723429]
[1769406918611,0.002,2871.5,2870.8,3.0228368]
[1769406919210,0.002,2871.5,2871.0,3.0228368]
[1769406920904,0.002,2871.7,2871.1,3.0228368]
[1769406921072,0.002,2871.7,2871.3,3.0228368]
[1769406923515,0.002,2871.5,2871.3,3.0228368]
[1769406927553,0.002,2871.5,2871.2,0.30228368]
[1769406928043,0.002,2871.5,2871.0,3.0228368]
[1769406930251,0.002,2871.5,2870.9,0.001]
[1769406931438,3.32156932,2871.5,2870.9,0.001]
[1769406932060,0.002,2871.5,2870.9,0.001]
[1769406933061,0.002,2871.5,2870.8,2.0238368]
[1769406933226,0.33435693,2871.5,2870.8,2.0238368]
[1769406934561,0.002,2871.7,2871.3,3.13686525]
[1769406935751,0.002,2871.7,2871.0,3.13686525]
[1769406936459,0.002,2871.7,2871.2,0.001]
[1769406936635,0.002,2871.5,2871.2,0.001]
[1769406936842,0.002,2871.5,2871.2,0.31478652]
[1769406937152,0.002,2871.5,2871.2,0.001]
[1769406938878,0.002,2871.5,2871.2,3.13786525]
[1769406939064,0.002,2871.5,2871.2,0.001]
[1769406943040,0.002,2871.5,2871.2,0.03582863]
[1769406943376,0.002,2871.5,2871.2,0.001]
[1769406947382,0.33864223,2871.5,2871.2,0.001]
[1769406948057,0.33864223,2871.5,2871.4,0.001]
[1769406948784,0.002,2871.5,2871.4,0.001]
[1769406957909,0.002,2871.5,2871.2,0.001]
[1769406958208,3.36442231,2871.5,2871.2,0.001]
[1769406959907,0.002,2871.5,2871.2,0.001]
[1769406960086,3.36442231,2871.5,2871.2,0.001]
[1769406960288,0.33644223,2871.4,2871.2,0.001]
[1769406960497,0.002,2871.5,2871.2,0.001]
[1769406961449,0.002,2871.7,2871.2,3.13786525]
[1769406968229,0.002,2871.7,2871.2,0.001]
[1769406968524,3.31779437,2871.6,2871.2,0.001]
[1769406969632,0.002,2871.7,2871.2,0.001]
[1769406969836,0.002,2871.7,2871.2,3.58652133]
[1769406970992,0.002,2871.7,2871.2,0.40620887]
[1769406971192,0.002,2871.7,2871.2,0.001]
[1769406971431,0.002,2871.7,2871.4,0.001]
[1769406971730,0.002,2871.5,2871.4,0.001]
[1769406974523,0.002,2871.7,2871.4,3.18131246]
[1769406974823,0.002,2871.9,2871.5,3.18031246]
[1769406976313,3.31979437,2871.9,2871.4,0.001]
[1769406976741,0.33217944,2871.8,2871.4,0.001]
[1769406977036,3.31979437,2871.9,2871.4,0.001]
[1769406981363,0.002,2871.9,2871.4,3.49023479]
[1769406981661,0.002,2872.3,2871.6,3.48923479]
[1769406983278,0.002,2871.7,2871.6,3.48923479]
[1769406983459,0.002,2872.3,2871.7,3.48923479]
[1769406983926,0.002,2872.3,2871.6,1.03208548]
[1769406984131,0.06978611,2871.9,2871.4,0.001]
[1769406985146,0.002,2872.2,2871.5,4.35985785]
[1769406985863,0.002,2872.2,2871.5,3.48923479]
[1769406986029,0.002,2872.2,2871.6,4.5213192]
[1769406986234,0.002,2872.2,2871.7,3.48923479]
[1769406989346,0.002,2872.2,2871.7,4.35979526]
[1769406989764,0.002,2872.2,2871.7,4.35979415]
[1769406990236,0.002,2872.2,2871.7,3.48923479]
[1769406990569,0.002,2872.2,2871.8,0.40163227]
[1769406991557,0.002,2872.2,2871.5,4.35984053]
[1769406994140,0.002,2872.2,2871.5,3.48923479]
[1769406994754,0.002,2872.2,2871.5,4.35985722]
[1769406995770,0.002,2872.2,2871.5,3.48923479]
[1769406996158,0.002,2872.2,2871.6,0.001]
[1769406996368,0.002,2872.2,2871.7,0.43608552]
[1769407000393,0.002,2872.2,2871.6,0.001]
[1769407001284,0.06978611,2872.1,2871.6,0.001]
[1769407001474,3.53433439,2872.1,2871.6,0.001]
[1769407003781,0.06978611,2871.9,2871.6,0.001]
[1769407003998,3.53433439,2871.9,2871.4,0.001]
[1769407004187,3.89474644,2871.9,2871.4,0.001]
[1769407006185,0.36041205,2871.9,2871.4,0.001]
[1769407007791,0.36041205,2871.9,2871.6,0.001]
[1769407008488,3.82496033,2871.9,2871.6,0.001]
[1769407008787,0.38269603,2871.8,2871.6,0.001]
[1769407011186,0.45248214,2871.8,2871.6,0.001]
[1769407011687,3.91703042,2871.8,2871.2,0.001]
[1769407012007,3.46454828,2871.4,2870.5,0.87090796]
[1769407012184,3.53433439,2871.3,2870.1,5.95997113]
[1769407012366,0.06978611,2871.1,2870.3,0.87097142]
[1769407012866,0.06978611,2871.1,2870.2,3.31228632]
[1769407012867,3.53433439,2871.1,2870.2,3.31228632]
[1769407013668,0.06978611,2871.1,2870.3,3.31228632]
[1769407016264,3.46454828,2871.2,2870.3,3.31228632]
[1769407016497,0.35343344,2871.1,2870.3,0.87098587]
[1769407016663,3.81798172,2871.4,2870.5,3.31228632]
[1769407017880,0.06978611,2871.3,2870.5,3.31228632]
[1769407018206,3.53433439,2871.3,2870.3,3.31228632]
[1769407018613,3.46454828,2871.0,2870.1,3.31228632]
[1769407018925,1.01921666,2870.9,2870.1,3.31228632]
[1769407020006,0.94943055,2870.9,2870.2,3.31228632]
[1769407020388,6.02975724,2871.1,2870.2,3.31228632]
[1769407020902,0.06978611,2870.9,2870.2,3.31228632]
[1769407021104,3.53433439,2870.9,2869.9,3.31228632]
[1769407021714,3.53433439,2870.9,2869.7,3.31328632]
[1769407021715,3.53433439,2870.7,2869.7,3.31328632]
[1769407022222,3.53433439,2870.7,2869.7,0.001]
[1769407022536,3.46454828,2870.5,2869.7,3.31328632]
[1769407023389,0.94943055,2870.6,2869.8,3.36329584]
[1769407023585,0.94943055,2870.6,2869.9,3.36329584]
[1769407023785,9.32885323,2871.1,2869.9,3.36329584]
[1769407024093,3.3688821,2871.1,2869.9,3.36329584]
[1769407024418,6.35,2871.2,2869.9,3.36329584]
[1769407024818,6.35,2871.2,2870.0,5.95997113]
[1769407025001,6.35,2871.2,2870.1,3.36329584]
[1769407025195,6.35,2871.2,2870.3,3.36329584]
[1769407027525,9.7188821,2871.3,2870.3,3.36329584]
[1769407027899,6.35,2871.3,2870.4,3.36329584]
[1769407028423,0.002,2871.6,2870.4,3.36329584]
[1769407028424,0.07178611,2871.6,2870.4,3.36329584]
[1769407029696,3.3708821,2871.6,2870.4,3.36329584]
[1769407029896,3.3708821,2871.6,2870.3,0.87098217]
[1769407029897,1.00608532,2871.5,2870.6,3.36329584]
[1769407030230,0.06978611,2871.4,2870.6,3.36329584]
[1769407032225,0.07178611,2871.4,2870.6,3.36329584]
[1769407033019,0.002,2871.4,2870.7,3.36329584]
[1769407034729,0.002,2871.4,2870.8,3.36329584]
[1769407035030,0.002,2871.4,2870.8,3.78670936]
[1769407041117,0.002,2871.4,2870.9,3.61038469]
[1769407041317,0.002,2871.4,2871.0,3.64521453]
[1769407042205,0.002,2871.4,2870.8,4.93946252]
[1769407042407,0.002,2871.4,2870.9,3.61038469]
[1769407043529,0.002,2871.4,2871.0,0.03483106]
[1769407043709,0.002,2871.4,2870.9,3.61038469]
[1769407043710,0.002,2871.4,2871.1,0.03482984]
[1769407043910,0.002,2871.2,2871.1,0.03482984]
[1769407044239,0.002,2871.2,2870.9,3.61038469]
[1769407045329,0.002,2871.2,2870.8,0.42341352]
[1769407046321,0.002,2871.2,2870.7,3.61038469]
[1769407046820,0.002,2871.2,2870.7,4.48125009]
[1769407048346,0.002,2871.2,2870.7,3.61038469]
[1769407048514,0.002,2871.2,2870.7,4.48124803]
[1769407050158,0.002,2871.2,2870.8,0.03483349]
[1769407050308,0.002,2871.2,2870.9,4.06199284]
[1769407051013,0.002,2871.6,2871.0,9.57245388]
[1769407051245,0.002,2871.6,2871.0,5.96206919]
[1769407051437,0.002,2871.6,2871.1,3.61038469]
[1769407057754,0.002,2871.4,2871.1,3.61038469]
[1769407057944,0.002,2871.4,2871.2,0.55868073]
[1769407058963,0.002,2871.6,2871.3,3.59424749]
[1769407059357,0.002,2871.6,2871.4,0.03482621]
[1769407059859,0.002,2871.6,2871.3,3.59424749]
[1769407060469,0.002,2871.6,2871.2,1.42939292]
[1769407060470,0.002,2871.6,2871.4,3.6290737]
[1769407060761,0.002,2871.8,2871.5,0.36290737]
[1769407063364,0.002,2871.8,2871.2,5.05845705]
[1769407064858,0.002,2871.8,2871.2,5.05846819]
[1769407065847,0.002,2871.8,2871.2,5.05846732]
[1769407066041,0.002,2871.8,2871.2,5.02363868]
[1769407066862,0.002,2871.8,2871.2,5.02364405]
[1769407068065,3.4964858,2871.8,2871.2,0.55868073]
[1769407068249,3.4964858,2871.8,2871.0,0.87076003]
[1769407068447,3.4964858,2871.8,2871.1,0.87074081]
[1769407069370,3.4964858,2871.8,2871.3,0.001]
[1769407069571,0.002,2871.6,2871.3,0.001]
[1769407071484,0.002,2871.6,2871.3,0.44759883]
[1769407071780,0.002,2871.6,2871.3,0.001]
[1769407081194,0.002,2871.6,2871.5,0.001]
[1769407081804,0.002,2871.6,2871.0,0.90558921]
[1769407082008,3.4944858,2871.3,2870.5,0.87192836]
[1769407082215,3.4944858,2871.3,2870.5,0.79601202]
[1769407082703,3.4944858,2871.3,2870.5,1.66693873]
[1769407085984,3.4944858,2871.3,2870.5,0.79601202]
[1769407086996,3.4944858,2871.3,2870.5,1.66694042]
[1769407088203,3.4944858,2871.3,2870.5,0.79601202]
[1769407090502,3.4944858,2871.3,2870.5,4.24943165]
[1769407090712,3.4944858,2871.3,2870.6,0.428427]
[1769407092014,3.4944858,2871.3,2870.5,0.001]
[1769407092676,3.4944858,2871.3,2870.7,0.001]
[1769407099816,0.002,2871.6,2870.7,3.27782928]
[1769407100018,0.002,2871.6,2870.7,3.18768316]
[1769407100218,3.45964719,2871.6,2870.7,3.18768316]
[1769407100530,3.80581191,2871.6,2870.8,0.03483349]
[1769407101038,3.80581191,2871.6,2870.7,3.18768316]
[1769407101237,3.80581191,2871.6,2870.6,5.96206919]
[1769407101830,3.80581191,2871.6,2870.5,4.14873423]
[1769407102529,3.80581191,2871.6,2870.6,3.27682928]
[1769407102730,3.84520699,2871.5,2870.6,3.3116652]
[1769407102928,3.45764719,2871.3,2870.5,0.001]
[1769407104929,0.06978611,2871.2,2870.5,0.001]
[1769407105230,3.5274333,2871.2,2870.5,0.001]
[1769407105414,3.88735524,2871.2,2870.5,0.001]
[1769407105732,3.81756913,2871.2,2870.5,0.001]
[1769407106429,3.45764719,2870.9,2870.5,0.001]
[1769407107829,3.45764719,2870.9,2869.9,0.90593539]
[1769407108134,3.45764719,2870.9,2869.9,4.18276467]
[1769407108299,3.45764719,2870.9,2870.0,4.04355071]
[1769407109311,0.06978611,2871.1,2870.2,3.27682928]
[1769407109712,3.5274333,2871.1,2870.2,3.27682928]
[1769407110034,3.5274333,2871.1,2870.2,4.14783715]
[1769407110231,3.5274333,2871.1,2870.2,3.27682928]
[1769407110419,0.38873552,2871.0,2870.2,3.27682928]
[1769407111213,0.38873552,2871.0,2870.3,3.27682928]
[1769407111405,0.002,2871.4,2870.4,3.31166763]
[1769407111604,3.45964719,2871.4,2870.4,3.31166763]
[1769407112138,3.45964719,2871.4,2870.4,3.27682928]
[1769407113337,3.45964719,2871.4,2870.5,3.4978697]
[1769407113639,0.35294333,2871.3,2870.5,3.4978697]
[1769407114718,3.64660931,2871.3,2870.5,3.46303257]
[1769407115123,0.06978611,2871.2,2870.3,0.03483956]
[1769407115327,3.29366598,2871.1,2870.2,10.33204096]
[1769407115531,3.29366598,2871.1,2870.2,10.2972014]
[1769407115734,3.29366598,2871.1,2870.3,0.66699525]
[1769407115934,3.29366598,2871.1,2870.6,0.001]
[1769407119745,0.002,2871.4,2870.6,0.001]
[1769407120044,0.06978611,2871.3,2870.6,0.001]
[1769407120348,3.36345209,2871.3,2870.6,0.001]
[1769407120641,0.33654521,2871.2,2870.6,0.001]
[1769407122120,3.6999973,2871.2,2870.6,0.001]
[1769407127820,0.002,2871.0,2870.6,0.001]
[1769407128855,3.29566598,2871.0,2870.6,0.001]
[1769407130120,0.002,2871.0,2870.6,0.001]
[1769407135057,3.6590871,2871.0,2870.6,0.001]
[1769407135664,3.36345209,2870.9,2870.6,0.001]
[1769407139679,0.36542112,2871.0,2870.6,0.001]
[1769407141846,0.002,2871.0,2870.6,0.001]
[1769407142058,0.002,2870.8,2870.6,0.001]
[1769407161102,0.002,2871.0,2870.6,3.59203396]
[1769407162507,0.002,2871.0,2870.6,4.46293095]
[1769407162809,0.002,2871.0,2870.7,4.03732706]
[1769407163505,0.002,2871.2,2870.7,4.03732706]
[1769407165510,0.002,2871.2,2870.8,0.001]
[1769407165897,0.002,2871.0,2870.8,0.001]
[1769407171643,3.34976835,2871.0,2870.6,0.001]
[1769407171820,0.34195545,2870.9,2870.6,0.001]
[1769407172144,3.34976835,2871.0,2870.6,0.001]
[1769407178252,3.34976835,2871.0,2870.8,0.001]
[1769407179740,0.002,2871.0,2870.8,0.001]
[1769407181144,0.002,2871.0,2869.7,3.51744329]
[1769407181145,3.59906009,2870.9,2869.7,3.51744329]
[1769407181346,0.06978611,2870.7,2869.8,1.29586733]
[1769407181548,3.59906009,2870.7,2869.7,0.001]
[1769407181847,3.59906009,2870.7,2869.7,4.38859322]
[1769407182027,3.59906009,2870.7,2869.7,3.51744329]
[1769407182731,3.59906009,2870.7,2869.7,4.38861235]
[1769407184652,0.06978611,2870.6,2869.7,4.38861235]
[1769407184824,0.06978611,2870.6,2869.8,3.51644329]
[1769407186126,3.52927398,2870.5,2869.7,0.78834078]
[1769407186317,3.52927398,2870.2,2869.7,0.001]
[1769407189855,3.52927398,2870.2,2869.9,0.001]
[1769407190064,0.35990601,2870.1,2869.9,0.001]
[1769407190655,3.52927398,2870.4,2869.9,0.001]
[1769407191552,3.59906009,2870.6,2869.9,0.001]
[1769407191857,0.06978611,2870.4,2869.9,0.001]
[1769407194560,3.59906009,2870.4,2869.9,0.001]
[1769407195630,3.59906009,2870.6,2869.9,0.001]
[1769407195961,0.35990601,2870.5,2869.9,0.001]
[1769407197043,0.35990601,2870.5,2869.9,3.51744329]
[1769407197239,3.9611661,2870.8,2869.9,3.51744329]
[1769407197449,3.9611661,2870.8,2869.9,0.001]
[1769407197450,3.59906009,2870.4,2869.9,0.001]
[1769407199646,3.52927398,2870.2,2869.4,0.03585049]
[1769407199848,3.88917999,2870.2,2869.4,3.55229378]
[1769407200164,0.35990601,2870.2,2869.4,3.55229378]
[1769407200366,9.87927398,2870.5,2869.5,9.47981437]
[1769407200666,6.35,2870.5,2869.6,3.51644329]
[1769407201252,6.35,2870.5,2869.6,3.55129135]
[1769407201451,6.35,2870.5,2869.7,0.8711712]
[1769407201776,0.002,2870.8,2870.2,3.51644329]
[1769407202377,0.002,2870.8,2870.4,5.96337108]
[1769407202677,0.002,2870.8,2870.4,9.47981437]
[1769407203238,0.002,2870.8,2870.5,3.41669313]
[1769407203477,0.002,2871.0,2870.5,3.41669313]
[1769407203773,0.002,2871.0,2870.6,4.35469955]
[1769407204579,0.002,2871.0,2870.6,3.41669313]
[1769407206298,0.002,2871.0,2870.3,3.41669313]
[1769407206606,3.43018891,2870.9,2870.1,0.001]
[1769407209382,3.3604028,2870.9,2870.1,3.41769313]
[1769407209586,0.002,2871.0,2870.1,3.41769313]
[1769407209777,0.002,2871.0,2870.3,3.41669313]
[1769407210294,3.3624028,2871.0,2870.2,0.42887716]
[1769407210590,3.3624028,2871.0,2870.1,0.001]
[1769407210591,3.43018891,2870.9,2870.1,0.001]
[1769407211669,0.002,2871.0,2870.2,3.41669313]
[1769407213003,3.3624028,2871.0,2870.2,3.41669313]
[1769407213895,3.3624028,2871.0,2870.1,0.001]
[1769407214400,3.3604028,2870.8,2870.1,0.001]
[1769407214601,3.3604028,2870.6,2870.1,0.001]
[1769407215303,0.34301889,2870.7,2870.1,0.001]
[1769407215499,0.002,2870.8,2870.1,0.001]
[1769407215688,3.3624028,2870.8,2870.1,0.001]
[1769407216308,3.43018891,2870.7,2870.1,0.001]
[1769407218302,3.42401926,2870.4,2870.1,0.001]
[1769407223778,3.42401926,2870.4,2869.4,3.51471866]
[1769407224090,0.06978611,2870.3,2869.5,0.35147187]
[1769407224292,3.49380537,2870.3,2869.4,3.51471866]
[1769407226001,3.42401926,2870.3,2869.4,3.51471866]
[1769407226206,3.42401926,2870.3,2869.6,0.001]
[1769407227509,0.34938054,2870.4,2869.6,0.001]
[1769407227805,0.34938054,2870.4,2869.6,3.51471866]
[1769407227983,0.06978611,2870.5,2869.6,3.51471866]
[1769407228586,3.49380537,2870.5,2869.6,3.51471866]
[1769407229708,3.49380537,2870.3,2869.6,0.001]
[1769407231713,0.06978611,2870.1,2869.6,0.001]
[1769407231917,3.42401926,2870.2,2869.6,0.001]
[1769407232084,0.34938054,2870.1,2869.6,0.001]
[1769407232590,3.84318591,2870.1,2869.6,0.001]
[1769407234822,3.7733998,2870.1,2869.6,0.001]
[1769407235024,0.34938054,2870.1,2869.6,0.001]
[1769407235689,0.06978611,2870.5,2869.6,0.001]
[1769407235889,0.06978611,2870.3,2869.6,0.001]
[1769407236416,3.40977175,2870.3,2869.6,0.001]
[1769407237824,3.40977175,2870.3,2869.8,0.001]
[1769407238200,0.06978611,2870.5,2869.8,0.001]
[1769407238526,0.69100958,2870.4,2869.8,0.001]
[1769407239194,0.06978611,2870.3,2869.8,0.001]
[1769407241428,0.69100958,2870.4,2869.8,0.001]
[1769407241629,0.06978611,2870.5,2869.8,0.001]
[1769407242198,3.40977175,2870.5,2869.8,0.001]
[1769407242907,0.06978611,2870.3,2869.8,0.001]
[1769407244943,0.07178611,2870.8,2869.8,3.44649059]
[1769407245101,3.41177175,2870.8,2869.8,3.44649059]
[1769407245303,1.04917718,2870.7,2869.8,3.44649059]
[1769407245533,0.06978611,2870.6,2869.8,3.44649059]
[1769407248817,0.07178611,2870.8,2869.9,3.44549059]
[1769407248818,0.002,2870.8,2869.9,3.44549059]
[1769407249408,0.002,2870.4,2869.9,3.44549059]
[1769407249710,0.002,2870.4,2870.0,3.44549059]
[1769407249933,0.002,2870.4,2870.2,3.44549059]
[1769407251025,0.002,2870.6,2870.2,3.44549059]
[1769407251646,0.002,2870.6,2870.3,3.44549059]
[1769407255344,0.002,2870.6,2870.1,3.87714888]
[1769407257053,0.002,2870.6,2870.2,3.44549059]
[1769407257258,0.002,2870.6,2870.3,0.38771489]
[1769407261659,0.002,2870.6,2870.4,0.001]
[1769407262426,0.002,2870.8,2870.4,3.44649059]
[1769407264055,0.002,2870.8,2870.5,3.3639131]
[1769407264268,0.002,2871.0,2870.6,3.32907597]
[1769407264567,0.002,2871.0,2870.7,0.33639131]
[1769407265830,0.002,2871.0,2870.4,0.001]
[1769407266043,3.51081944,2871.0,2870.4,0.001]
[1769407267361,0.002,2871.0,2870.4,0.001]
[1769407268864,0.002,2871.0,2870.4,3.33007597]
[1769407269166,0.002,2871.0,2870.4,3.36491432]
[1769407269385,0.002,2871.0,2870.7,3.32907597]
[1769407271067,0.002,2871.0,2870.5,0.33649143]
[1769407271269,0.002,2871.0,2870.5,3.32907597]
[1769407271767,0.002,2871.0,2870.4,0.001]
[1769407272868,0.002,2871.0,2870.4,3.33007597]
[1769407273271,0.002,2871.0,2870.4,4.20103409]
[1769407273777,0.002,2870.8,2870.4,3.33007597]
[1769407273944,0.002,2870.8,2870.5,0.42010507]
[1769407274550,0.002,2870.8,2870.5,3.74918104]
[1769407274842,0.002,2871.0,2870.5,3.78401817]
[1769407275043,0.002,2871.0,2870.5,3.74918104]
[1769407275836,0.002,2871.0,2870.5,4.62009981]
[1769407276064,0.002,2871.0,2870.6,3.79466979]
[1769407278058,0.002,2871.0,2870.6,0.46559382]
[1769407278365,0.002,2871.0,2870.4,3.54507095]
[1769407280261,0.002,2871.0,2870.4,4.41602839]
[1769407285960,0.002,2871.0,2870.6,0.001]
[1769407286287,0.002,2870.8,2870.6,0.001]
[1769407289204,0.001,2870.8,2870.6,0.001]
[1769407289576,0.002,2871.0,2870.6,0.001]
[1769407289577,0.0010029,2871.0,2870.6,0.001]
[1769407297308,0.33808629,2871.0,2870.6,0.001]
[1769407297496,0.0010029,2871.0,2870.6,0.001]
[1769407297877,0.0010029,2871.0,2870.6,3.52535818]
[1769407298084,0.0010029,2871.0,2870.6,0.001]
[1769407299582,3.56616965,2871.0,2870.6,0.001]
[1769407299793,3.92298662,2871.0,2870.6,0.001]
[1769407299993,0.002,2871.2,2870.6,0.001]
[1769407300292,2.51903803,2871.2,2870.6,0.001]
[1769407305916,0.002,2871.2,2870.6,3.52535818]
[1769407306286,0.002,2871.2,2870.8,3.52435818]
[1769407309996,0.002,2871.2,2870.8,3.52535818]
[1769407310196,0.002,2871.0,2870.8,3.52535818]
[1769407310397,0.002,2871.0,2870.9,3.52435818]
[1769407314828,0.002,2871.0,2870.8,0.001]
[1769407316398,0.002,2871.0,2870.6,0.001]
[1769407317931,2.79801993,2871.1,2871.0,4.998]
[1769407318122,2.79801993,2871.1,2870.6,0.001]
[1769407318330,0.28000199,2871.0,2870.6,0.001]
[1769407318641,0.002,2871.2,2870.6,0.001]
[1769407319207,0.002,2871.2,2870.6,3.52535818]
[1769407321815,0.002,2871.2,2870.8,0.001]
[1769407325736,0.002,2871.2,2870.4,0.001]
[1769407325737,2.93774434,2871.0,2870.4,0.001]
[1769407326048,6.02757762,2871.1,2870.4,0.001]
[1769407326049,3.89697465,2870.9,2870.4,0.001]
[1769407326219,2.95094269,2870.8,2870.4,0.001]
[1769407327117,0.06269811,2870.7,2870.4,0.001]
[1769407327316,3.0266939,2870.7,2870.4,0.001]
[1769407327517,0.30266939,2870.6,2870.4,0.001]
[1769407328248,3.27957015,2870.6,2870.4,0.001]
[1769407332850,3.32972341,2870.6,2869.8,3.64893856]
[1769407333053,3.32972341,2870.6,2869.8,0.001]
[1769407333251,3.44118355,2870.5,2869.8,0.001]
[1769407337127,3.16076294,2870.3,2869.8,0.001]
[1769407340657,0.33924215,2870.5,2869.8,3.70557874]
[1769407340822,0.30266939,2870.6,2869.8,3.70557874]
[1769407341229,3.13377023,2870.8,2869.8,3.70557874]
[1769407341230,0.002,2870.8,2869.8,3.70557874]
[1769407343361,0.002,2870.8,2869.4,0.001]
[1769407343362,3.16434252,2870.1,2869.4,0.001]
[1769407343657,0.06269811,2870.0,2869.4,0.001]
[1769407343863,3.22704063,2870.0,2869.4,0.001]
[1769407344034,0.39570406,2869.9,2869.4,0.001]
[1769407345528,0.06269811,2870.0,2869.4,0.001]
[1769407345963,0.06269811,2870.0,2869.6,0.001]
[1769407352267,0.73,2870.1,2869.6,0.001]
[1769407353742,0.06269811,2870.0,2869.6,0.001]
[1769407354265,0.06269811,2870.0,2869.4,0.001]
[1769407354266,3.3469241,2870.0,2869.4,0.001]
[1769407354474,1.00476901,2869.9,2869.4,0.001]
[1769407357684,1.00476901,2869.9,2869.6,0.001]
[1769407360989,0.06269811,2870.0,2869.6,0.001]
[1769407361158,0.73,2869.8,2869.6,0.001]
[1769407363298,3.35519054,2870.2,2869.6,0.001]
[1769407363458,0.73,2869.7,2869.6,0.001]
[1769407363967,3.35519054,2870.2,2869.6,0.001]
[1769407364159,0.06269811,2870.0,2869.6,0.001]
[1769407365385,0.42261835,2870.1,2869.6,0.001]
[1769407365591,0.73,2870.0,2869.6,3.83919834]
[1769407366569,0.73,2870.0,2869.6,0.001]
[1769407367269,0.06269811,2869.9,2869.6,0.001]
[1769407368997,0.73,2869.8,2869.6,0.001]
[1769407369177,0.732,2869.8,2869.6,0.001]
[1769407380718,0.732,2869.8,2869.4,0.001]
[1769407381100,0.002,2869.6,2869.4,0.001]
[1769407381706,0.425325,2869.6,2869.4,0.001]
[1769407382090,0.002,2869.6,2869.4,0.001]
[1769407386501,0.002,2869.6,2868.9,3.94799076]
[1769407386705,0.06269811,2869.5,2868.7,0.001]
[1769407386901,0.06269811,2869.3,2868.7,0.001]
[1769407387199,0.06269811,2869.1,2868.7,0.001]
[1769407387508,0.06269811,2869.1,2867.6,5.97076601]
[1769407387509,0.06269811,2868.9,2867.6,5.97076601]
[1769407387706,0.06269811,2868.7,2867.7,3.94799076]
[1769407392400,0.73,2868.7,2867.7,3.94799076]
[1769407392600,0.73,2868.7,2868.0,3.94799076]
[1769407395533,0.73,2868.8,2868.0,3.94799076]
[1769407397928,0.60334641,2869.0,2868.0,3.94799076]
[1769407398131,3.80096035,2869.5,2868.2,3.8182601]
[1769407398310,0.79269811,2869.3,2868.3,3.8182601]
[1769407398931,0.06269811,2869.3,2868.3,3.8182601]
[1769407399134,0.73,2869.2,2868.3,3.8182601]
[1769407399435,0.06269811,2869.1,2868.3,3.8182601]
[1769407400039,0.06269811,2868.7,2868.3,3.8182601]
[1769407400807,0.06269811,2868.7,2867.9,0.001]
[1769407400808,0.06269811,2868.7,2868.0,3.8182601]
[1769407401003,3.68943153,2868.9,2868.0,3.8182601]
[1769407401207,0.06269811,2868.7,2868.0,3.8182601]